[Event "Late-Titled-Tuesday-Blitz-August-29-2023"]
[Site "Chess.com"]
[Date "2023.08.29"]
[Round "7"]
[White "Anton_Demchenko"]
[Black "BlackBoarder"]
[Result "1-0"]
[WhiteElo "2923"]
[BlackElo "2741"]
[TimeControl "180+1"]
[EndTime "15:16:05 PDT"]
[Termination "Anton_Demchenko won on time"]

1. e4 {[%clk 0:03:00.9]} 1... e6 {[%clk 0:02:59.7]} 2. d4 {[%clk 0:03:00.7]}
2... d5 {[%clk 0:03:00.2]} 3. Nd2 {[%clk 0:03:01.4]} 3... c5 {[%clk 0:03:00.3]}
4. Ngf3 {[%clk 0:03:01.6]} 4... cxd4 {[%clk 0:03:00.7]} 5. Nxd4 {[%clk
0:03:01.4]} 5... Nf6 {[%clk 0:03:00.9]} 6. exd5 {[%clk 0:02:59.9]} 6... Nxd5
{[%clk 0:03:01.8]} 7. N2f3 {[%clk 0:02:55.1]} 7... Bb4+ {[%clk 0:03:00.9]} 8.
Bd2 {[%clk 0:02:54.3]} 8... O-O {[%clk 0:02:57.4]} 9. c3 {[%clk 0:02:54]} 9...
Bc5 {[%clk 0:02:50.2]} 10. Qc2 {[%clk 0:02:52]} 10... e5 {[%clk 0:02:49.5]} 11.
Nb3 {[%clk 0:02:51.5]} 11... Bb6 {[%clk 0:02:46.5]} 12. O-O-O {[%clk 0:02:49.8]}
12... Nc6 {[%clk 0:02:44.9]} 13. Bd3 {[%clk 0:02:39.7]} 13... g6 {[%clk
0:02:41.1]} 14. Bh6 {[%clk 0:02:36.7]} 14... Re8 {[%clk 0:02:38.1]} 15. Be4
{[%clk 0:02:33.4]} 15... Be6 {[%clk 0:02:32.3]} 16. Kb1 {[%clk 0:02:20]} 16...
f5 {[%clk 0:02:24.5]} 17. Bxd5 {[%clk 0:01:55.7]} 17... Bxd5 {[%clk 0:02:25.4]}
18. Ng5 {[%clk 0:01:56.1]} 18... Qxg5 {[%clk 0:01:43.3]} 19. Bxg5 {[%clk
0:01:50.4]} 19... Be4 {[%clk 0:01:41.9]} 20. Qxe4 {[%clk 0:01:48.1]} 20... fxe4
{[%clk 0:01:41.7]} 21. Be3 {[%clk 0:01:48.9]} 21... Rf8 {[%clk 0:01:36.2]} 22.
Nc5 {[%clk 0:01:48.3]} 22... Rf7 {[%clk 0:01:25.5]} 23. Nxe4 {[%clk 0:01:45.2]}
23... Bxe3 {[%clk 0:01:19.5]} 24. fxe3 {[%clk 0:01:46.1]} 24... Raf8 {[%clk
0:01:15.6]} 25. Kc2 {[%clk 0:01:45.2]} 25... Ne7 {[%clk 0:01:12.8]} 26. Rhe1
{[%clk 0:01:44.9]} 26... Nf5 {[%clk 0:01:08]} 27. Re2 {[%clk 0:01:41]} 27... Re7
{[%clk 0:00:53.6]} 28. a4 {[%clk 0:01:35.9]} 28... b6 {[%clk 0:00:51.3]} 29. c4
{[%clk 0:01:33.5]} 29... Kg7 {[%clk 0:00:48.6]} 30. b3 {[%clk 0:01:33.2]} 30...
h5 {[%clk 0:00:44.4]} 31. g3 {[%clk 0:01:30.8]} 31... h4 {[%clk 0:00:43.3]} 32.
g4 {[%clk 0:01:27.3]} 32... Nh6 {[%clk 0:00:41.8]} 33. g5 {[%clk 0:01:27.5]}
33... Nf5 {[%clk 0:00:40.6]} 34. Kc3 {[%clk 0:01:08.4]} 34... h3 {[%clk
0:00:29.2]} 35. b4 {[%clk 0:01:08.3]} 35... Nh4 {[%clk 0:00:25.7]} 36. c5 {[%clk
0:01:03.5]} 36... bxc5 {[%clk 0:00:21.4]} 37. bxc5 {[%clk 0:01:04.4]} 37... Ng2
{[%clk 0:00:11.4]} 38. Kc4 {[%clk 0:00:58.4]} 38... Rf3 {[%clk 0:00:10.9]} 39.
Rd3 {[%clk 0:00:58.9]} 39... Rb7 {[%clk 0:00:04]} 40. c6 {[%clk 0:00:56.1]}
40... Rb6 {[%clk 0:00:03.8]} 41. Kc5 {[%clk 0:00:53.4]} 41... Nf4 {[%clk
0:00:03.9]} 42. Rd7+ {[%clk 0:00:52]} 42... Kf8 {[%clk 0:00:01.4]} 43. exf4
{[%clk 0:00:50.5]} 43... exf4 {[%clk 0:00:01.6]} 44. c7 {[%clk 0:00:49.5]} 1-0

[Event "Late-Titled-Tuesday-Blitz-August-29-2023"]
[Site "Chess.com"]
[Date "2023.08.29"]
[Round "7"]
[White "NigelDwarf"]
[Black "Mops_2004"]
[Result "0-1"]
[WhiteElo "2553"]
[BlackElo "2772"]
[TimeControl "180+1"]
[EndTime "15:16:05 PDT"]
[Termination "Mops_2004 won by checkmate"]

1. Nf3 {[%clk 0:03:00.9]} 1... f5 {[%clk 0:03:00]} 2. d3 {[%clk 0:03:00.4]} 2...
Nc6 {[%clk 0:02:59.1]} 3. Nc3 {[%clk 0:02:58.1]} 3... e5 {[%clk 0:02:58.1]} 4.
e4 {[%clk 0:02:57.5]} 4... Bb4 {[%clk 0:02:56.9]} 5. Bd2 {[%clk 0:02:47.3]} 5...
Nf6 {[%clk 0:02:56.1]} 6. exf5 {[%clk 0:02:39.8]} 6... d5 {[%clk 0:02:55.5]} 7.
a3 {[%clk 0:02:38.8]} 7... Bxc3 {[%clk 0:02:44.8]} 8. Bxc3 {[%clk 0:02:37.9]}
8... d4 {[%clk 0:02:44.9]} 9. Bd2 {[%clk 0:02:28.2]} 9... Bxf5 {[%clk
0:02:44.7]} 10. Qe2 {[%clk 0:02:24.2]} 10... O-O {[%clk 0:02:42.9]} 11. h3
{[%clk 0:02:15.7]} 11... e4 {[%clk 0:02:26.7]} 12. dxe4 {[%clk 0:02:13.1]} 12...
Nxe4 {[%clk 0:02:23]} 13. O-O-O {[%clk 0:02:10.9]} 13... Kh8 {[%clk 0:02:19.4]}
14. g4 {[%clk 0:01:59.1]} 14... Bg6 {[%clk 0:02:18.7]} 15. h4 {[%clk 0:01:55.4]}
15... Re8 {[%clk 0:01:50]} 16. h5 {[%clk 0:01:50.8]} 16... Ng3 {[%clk 0:01:42]}
17. fxg3 {[%clk 0:01:43.1]} 17... Rxe2 {[%clk 0:01:41.2]} 18. hxg6 {[%clk
0:01:38.1]} 18... d3 {[%clk 0:01:28.9]} 19. Rxh7+ {[%clk 0:01:29.5]} 19... Kg8
{[%clk 0:01:28.7]} 20. Bc3 {[%clk 0:01:28.1]} 20... Rxc2+ {[%clk 0:01:19.2]} 21.
Kb1 {[%clk 0:01:26.3]} 21... Rxc3 {[%clk 0:01:20.1]} 22. bxc3 {[%clk 0:01:22.8]}
22... Qd5 {[%clk 0:01:04.1]} 23. Bxd3 {[%clk 0:01:11.3]} 23... Qb3+ {[%clk
0:00:39.3]} 24. Kc1 {[%clk 0:01:09.8]} 24... Qxc3+ {[%clk 0:00:37.4]} 25. Bc2
{[%clk 0:00:33.9]} 25... Qxa3+ {[%clk 0:00:36.8]} 26. Kb1 {[%clk 0:00:28.1]}
26... Nb4 {[%clk 0:00:33.9]} 27. Bf5 {[%clk 0:00:19.1]} 27... Qb3+ {[%clk
0:00:26.7]} 28. Kc1 {[%clk 0:00:16.3]} 28... Na2+ {[%clk 0:00:23.7]} 29. Kd2
{[%clk 0:00:16]} 29... Rd8+ {[%clk 0:00:23.3]} 30. Ke2 {[%clk 0:00:15.9]} 30...
Qxd1+ {[%clk 0:00:22.6]} 31. Ke3 {[%clk 0:00:16.4]} 31... Re8+ {[%clk
0:00:19.2]} 32. Kf4 {[%clk 0:00:16.1]} 32... Qc1+ {[%clk 0:00:19.2]} 33. Nd2
{[%clk 0:00:15.6]} 33... Qxd2+ {[%clk 0:00:19.2]} 34. Kf3 {[%clk 0:00:16.5]}
34... Qe2+ {[%clk 0:00:18.2]} 35. Kf4 {[%clk 0:00:16.7]} 35... Qe3# {[%clk
0:00:18.6]} 0-1

[Event "Late-Titled-Tuesday-Blitz-August-29-2023"]
[Site "Chess.com"]
[Date "2023.08.29"]
[Round "7"]
[White "arenal72"]
[Black "rachidhuilda"]
[Result "1-0"]
[WhiteElo "2525"]
[BlackElo "2359"]
[TimeControl "180+1"]
[EndTime "15:16:08 PDT"]
[Termination "arenal72 won by checkmate"]

1. Nc3 {[%clk 0:03:00.9]} 1... d5 {[%clk 0:02:22.3]} 2. d4 {[%clk 0:02:59.3]}
2... c6 {[%clk 0:02:21.1]} 3. Bf4 {[%clk 0:02:50.4]} 3... Bf5 {[%clk 0:02:19.8]}
4. e3 {[%clk 0:02:48.5]} 4... e6 {[%clk 0:02:20]} 5. g4 {[%clk 0:02:47.9]} 5...
Bg6 {[%clk 0:02:19.5]} 6. h4 {[%clk 0:02:47.6]} 6... h5 {[%clk 0:02:19.6]} 7. g5
{[%clk 0:02:45.2]} 7... Qb6 {[%clk 0:02:18.4]} 8. Na4 {[%clk 0:02:18.8]} 8...
Qa5+ {[%clk 0:02:15.4]} 9. c3 {[%clk 0:02:15.9]} 9... Nd7 {[%clk 0:02:15.2]} 10.
b4 {[%clk 0:01:40.1]} 10... Qd8 {[%clk 0:01:37.9]} 11. Ne2 {[%clk 0:01:23.3]}
11... Be4 {[%clk 0:01:30.2]} 12. Rg1 {[%clk 0:01:18.7]} 12... Ne7 {[%clk
0:01:29.2]} 13. Ng3 {[%clk 0:01:17.8]} 13... Bg6 {[%clk 0:01:28.8]} 14. Be2
{[%clk 0:01:11.4]} 14... Nf5 {[%clk 0:01:19.2]} 15. Nxf5 {[%clk 0:01:09.5]}
15... Bxf5 {[%clk 0:01:19.5]} 16. Rh1 {[%clk 0:01:03]} 16... Bg6 {[%clk
0:01:10.6]} 17. Bd3 {[%clk 0:00:27.4]} 17... Bxd3 {[%clk 0:01:09.5]} 18. Qxd3
{[%clk 0:00:26.8]} 18... g6 {[%clk 0:01:09.9]} 19. Be5 {[%clk 0:00:27]} 19...
Nxe5 {[%clk 0:01:09.5]} 20. dxe5 {[%clk 0:00:27.9]} 20... a5 {[%clk 0:00:58.9]}
21. b5 {[%clk 0:00:26]} 21... c5 {[%clk 0:00:56.6]} 22. c4 {[%clk 0:00:22.9]}
22... Bg7 {[%clk 0:00:52.4]} 23. f4 {[%clk 0:00:19.6]} 23... Rc8 {[%clk
0:00:43.5]} 24. O-O-O {[%clk 0:00:18.4]} 24... O-O {[%clk 0:00:41.4]} 25. cxd5
{[%clk 0:00:17.6]} 25... exd5 {[%clk 0:00:41.3]} 26. Qxd5 {[%clk 0:00:17.6]}
26... Qe8 {[%clk 0:00:39.2]} 27. Qc4 {[%clk 0:00:12.4]} 27... Qe7 {[%clk
0:00:30.8]} 28. Rd6 {[%clk 0:00:07.8]} 28... Bxe5 {[%clk 0:00:19.3]} 29. fxe5
{[%clk 0:00:06.4]} 29... Qxe5 {[%clk 0:00:20.2]} 30. Rxg6+ {[%clk 0:00:06.3]}
30... Kh7 {[%clk 0:00:19]} 31. Rh6+ {[%clk 0:00:06.6]} 31... Kg8 {[%clk
0:00:15.9]} 32. Qc3 {[%clk 0:00:07]} 32... Qe4 {[%clk 0:00:12.2]} 33. Qh8#
{[%clk 0:00:05.2]} 1-0

[Event "Late-Titled-Tuesday-Blitz-August-29-2023"]
[Site "Chess.com"]
[Date "2023.08.29"]
[Round "7"]
[White "ural58"]
[Black "CheckBits"]
[Result "0-1"]
[WhiteElo "2516"]
[BlackElo "2422"]
[TimeControl "180+1"]
[EndTime "15:16:09 PDT"]
[Termination "CheckBits won on time"]

1. e4 {[%clk 0:02:54.6]} 1... e5 {[%clk 0:02:59.9]} 2. Nf3 {[%clk 0:02:53.7]}
2... Nc6 {[%clk 0:03:00.5]} 3. Bc4 {[%clk 0:02:53.3]} 3... Bc5 {[%clk
0:02:59.3]} 4. b4 {[%clk 0:02:52.4]} 4... Bxb4 {[%clk 0:02:58.7]} 5. c3 {[%clk
0:02:52.6]} 5... Ba5 {[%clk 0:02:58.7]} 6. d4 {[%clk 0:02:52.2]} 6... exd4
{[%clk 0:02:53.4]} 7. Qb3 {[%clk 0:02:48.3]} 7... Qf6 {[%clk 0:02:46.3]} 8. O-O
{[%clk 0:02:46.9]} 8... Nge7 {[%clk 0:02:38.5]} 9. cxd4 {[%clk 0:02:46.7]} 9...
O-O {[%clk 0:02:36]} 10. e5 {[%clk 0:02:31.4]} 10... Qg6 {[%clk 0:02:33.4]} 11.
Nc3 {[%clk 0:02:28.1]} 11... Bb6 {[%clk 0:02:29.4]} 12. Be3 {[%clk 0:02:23.6]}
12... Na5 {[%clk 0:02:27.7]} 13. Qa4 {[%clk 0:02:22.8]} 13... Nxc4 {[%clk
0:02:27.5]} 14. Qxc4 {[%clk 0:02:23]} 14... d6 {[%clk 0:02:26.5]} 15. a4 {[%clk
0:02:11.5]} 15... a6 {[%clk 0:01:43.8]} 16. a5 {[%clk 0:02:06.5]} 16... d5
{[%clk 0:01:24.8]} 17. Qb4 {[%clk 0:02:01.9]} 17... Nc6 {[%clk 0:01:22.8]} 18.
Qa3 {[%clk 0:01:40.1]} 18... Ba7 {[%clk 0:00:59]} 19. Nxd5 {[%clk 0:01:39.2]}
19... Bg4 {[%clk 0:00:58]} 20. Nh4 {[%clk 0:00:44.1]} 20... Qh5 {[%clk
0:00:51.8]} 21. g3 {[%clk 0:00:42.5]} 21... Bxd4 {[%clk 0:00:47.4]} 22. Rae1
{[%clk 0:00:15.3]} 22... Bh3 {[%clk 0:00:38.5]} 23. Ng2 {[%clk 0:00:12.8]} 23...
Nxe5 {[%clk 0:00:25.7]} 24. Ndf4 {[%clk 0:00:08.7]} 24... Nf3+ {[%clk
0:00:19.2]} 25. Kh1 {[%clk 0:00:09]} 25... Bxg2+ {[%clk 0:00:18.5]} 26. Kxg2
{[%clk 0:00:09.2]} 26... Nxe1+ {[%clk 0:00:13.9]} 27. Rxe1 {[%clk 0:00:09.1]}
27... Qe5 {[%clk 0:00:11.5]} 28. Bd2 {[%clk 0:00:04.7]} 28... Qf6 {[%clk
0:00:07.5]} 0-1

[Event "Late-Titled-Tuesday-Blitz-August-29-2023"]
[Site "Chess.com"]
[Date "2023.08.29"]
[Round "7"]
[White "jamengrand"]
[Black "gunslinger222"]
[Result "1-0"]
[WhiteElo "2365"]
[BlackElo "2458"]
[TimeControl "180+1"]
[EndTime "15:16:09 PDT"]
[Termination "jamengrand won by checkmate"]

1. e4 {[%clk 0:03:00.9]} 1... e6 {[%clk 0:02:59.8]} 2. d4 {[%clk 0:03:00.6]}
2... d5 {[%clk 0:03:00.4]} 3. e5 {[%clk 0:03:01]} 3... c5 {[%clk 0:02:59.9]} 4.
c3 {[%clk 0:03:01.6]} 4... Nc6 {[%clk 0:02:58.3]} 5. Nf3 {[%clk 0:03:02.2]} 5...
Qb6 {[%clk 0:02:58]} 6. Bd3 {[%clk 0:03:02.2]} 6... cxd4 {[%clk 0:02:57.9]} 7.
O-O {[%clk 0:03:02]} 7... Bd7 {[%clk 0:02:57.7]} 8. Re1 {[%clk 0:03:01.8]} 8...
Nge7 {[%clk 0:02:45.5]} 9. a3 {[%clk 0:03:00.1]} 9... a5 {[%clk 0:02:45]} 10.
cxd4 {[%clk 0:02:53.2]} 10... Nf5 {[%clk 0:02:42.3]} 11. Nc3 {[%clk 0:02:30.2]}
11... Nce7 {[%clk 0:02:06.9]} 12. Na4 {[%clk 0:02:10.9]} 12... Qc6 {[%clk
0:01:51.8]} 13. Nc5 {[%clk 0:01:52.5]} 13... Nxd4 {[%clk 0:01:50.3]} 14. Nxd4
{[%clk 0:01:52.7]} 14... Qxc5 {[%clk 0:01:50.4]} 15. Be3 {[%clk 0:01:52.8]}
15... Qc8 {[%clk 0:01:37.2]} 16. Rc1 {[%clk 0:01:18.8]} 16... Nc6 {[%clk
0:01:34.5]} 17. Qg4 {[%clk 0:01:15.1]} 17... h5 {[%clk 0:01:29]} 18. Qg3 {[%clk
0:01:13.2]} 18... Qb8 {[%clk 0:01:17.7]} 19. f4 {[%clk 0:01:04.9]} 19... h4
{[%clk 0:01:05.8]} 20. Qg4 {[%clk 0:01:04.3]} 20... Nxd4 {[%clk 0:00:57.9]} 21.
Bxd4 {[%clk 0:01:05.2]} 21... b6 {[%clk 0:00:42.4]} 22. f5 {[%clk 0:01:00.8]}
22... h3 {[%clk 0:00:31.8]} 23. g3 {[%clk 0:00:52.8]} 23... Bc5 {[%clk
0:00:24.4]} 24. Rxc5 {[%clk 0:00:38.8]} 24... bxc5 {[%clk 0:00:25.3]} 25. Qxg7
{[%clk 0:00:38.9]} 25... Rf8 {[%clk 0:00:25.9]} 26. Bxc5 {[%clk 0:00:39.4]}
26... Kd8 {[%clk 0:00:07.7]} 27. Qxf8+ {[%clk 0:00:37.6]} 27... Be8 {[%clk
0:00:07.8]} 28. Qe7+ {[%clk 0:00:29.8]} 28... Kc8 {[%clk 0:00:08.1]} 29. Qxe8+
{[%clk 0:00:27.3]} 29... Kb7 {[%clk 0:00:08.7]} 30. Qb5+ {[%clk 0:00:23.6]}
30... Kc8 {[%clk 0:00:07.4]} 31. Qc6+ {[%clk 0:00:21.7]} 31... Kd8 {[%clk
0:00:07.2]} 32. Bb6+ {[%clk 0:00:17.3]} 32... Ke7 {[%clk 0:00:07.5]} 33. Qc5+
{[%clk 0:00:15.9]} 33... Ke8 {[%clk 0:00:05.6]} 34. Bb5# {[%clk 0:00:16.2]} 1-0

[Event "Late-Titled-Tuesday-Blitz-August-29-2023"]
[Site "Chess.com"]
[Date "2023.08.29"]
[Round "7"]
[White "MusicCityMaster"]
[Black "ariosp"]
[Result "1-0"]
[WhiteElo "2454"]
[BlackElo "2250"]
[TimeControl "180+1"]
[EndTime "15:16:09 PDT"]
[Termination "MusicCityMaster won on time"]

1. e4 {[%clk 0:03:00.9]} 1... e5 {[%clk 0:02:59.3]} 2. d4 {[%clk 0:03:00.5]}
2... exd4 {[%clk 0:02:57.7]} 3. Qxd4 {[%clk 0:03:01.4]} 3... Nc6 {[%clk
0:02:57]} 4. Qe3 {[%clk 0:03:01.7]} 4... d6 {[%clk 0:02:55]} 5. Bd2 {[%clk
0:03:01.9]} 5... Nf6 {[%clk 0:02:51.7]} 6. c4 {[%clk 0:03:01.7]} 6... Be7 {[%clk
0:02:44.2]} 7. Nc3 {[%clk 0:02:58.5]} 7... O-O {[%clk 0:02:44]} 8. O-O-O {[%clk
0:02:58.3]} 8... Re8 {[%clk 0:02:43]} 9. f3 {[%clk 0:02:55.4]} 9... Bf8 {[%clk
0:02:39.3]} 10. h4 {[%clk 0:02:51.9]} 10... Ne5 {[%clk 0:02:24.8]} 11. h5 {[%clk
0:02:48.3]} 11... c6 {[%clk 0:02:21.5]} 12. h6 {[%clk 0:02:45.9]} 12... g6
{[%clk 0:02:20.7]} 13. Kb1 {[%clk 0:02:45]} 13... Be6 {[%clk 0:02:18.6]} 14. b3
{[%clk 0:02:15.6]} 14... Qb6 {[%clk 0:02:16.7]} 15. Qg5 {[%clk 0:02:07.7]} 15...
Be7 {[%clk 0:02:13.6]} 16. Na4 {[%clk 0:02:00.9]} 16... Qc7 {[%clk 0:02:06.1]}
17. Qg3 {[%clk 0:01:57.6]} 17... a6 {[%clk 0:02:00.4]} 18. Bc3 {[%clk
0:01:51.9]} 18... b5 {[%clk 0:01:57.8]} 19. Nc5 {[%clk 0:01:50.8]} 19... dxc5
{[%clk 0:01:15.9]} 20. Bxe5 {[%clk 0:01:47.7]} 20... Qa5 {[%clk 0:01:09.3]} 21.
Qf4 {[%clk 0:01:25.2]} 21... Nd7 {[%clk 0:01:04.6]} 22. Bb2 {[%clk 0:01:19.6]}
22... bxc4 {[%clk 0:00:58.3]} 23. Bxc4 {[%clk 0:01:17.7]} 23... Bxc4 {[%clk
0:00:46.8]} 24. Rxd7 {[%clk 0:01:04]} 24... Qe1+ {[%clk 0:00:44.2]} 25. Kc2
{[%clk 0:01:03.7]} 25... Rad8 {[%clk 0:00:10.9]} 26. Qd2 {[%clk 0:00:39.8]}
26... Qxd2+ {[%clk 0:00:09.1]} 27. Rxd2 {[%clk 0:00:40.7]} 27... Rxd2+ {[%clk
0:00:07.9]} 28. Kxd2 {[%clk 0:00:41.6]} 28... Bf1 {[%clk 0:00:04.9]} 29. Rh2
{[%clk 0:00:34.5]} 29... Bg5+ {[%clk 0:00:04.8]} 30. Ke1 {[%clk 0:00:33.2]}
30... Bd3 {[%clk 0:00:04.6]} 31. Ne2 {[%clk 0:00:32]} 31... f5 {[%clk
0:00:04.3]} 32. g3 {[%clk 0:00:27.8]} 32... fxe4 {[%clk 0:00:03.8]} 33. f4
{[%clk 0:00:27.7]} 33... Bd8 {[%clk 0:00:03.5]} 34. Kd2 {[%clk 0:00:28.2]} 1-0

[Event "Late-Titled-Tuesday-Blitz-August-29-2023"]
[Site "Chess.com"]
[Date "2023.08.29"]
[Round "7"]
[White "Apocalyps999"]
[Black "Michalczak"]
[Result "0-1"]
[WhiteElo "2324"]
[BlackElo "2504"]
[TimeControl "180+1"]
[EndTime "15:16:10 PDT"]
[Termination "Michalczak won by resignation"]

1. e4 {[%clk 0:03:00.9]} 1... e5 {[%clk 0:02:59.8]} 2. Nf3 {[%clk 0:03:01.1]}
2... Nc6 {[%clk 0:03:00.2]} 3. Nc3 {[%clk 0:03:01.2]} 3... Nf6 {[%clk
0:03:00.2]} 4. a3 {[%clk 0:03:00.9]} 4... d5 {[%clk 0:03:00.4]} 5. exd5 {[%clk
0:03:00.8]} 5... Nxd5 {[%clk 0:03:00]} 6. Bb5 {[%clk 0:03:01.1]} 6... Nxc3
{[%clk 0:02:58.5]} 7. bxc3 {[%clk 0:03:01.2]} 7... Bd6 {[%clk 0:02:58.9]} 8. d4
{[%clk 0:02:59.1]} 8... exd4 {[%clk 0:02:58.7]} 9. cxd4 {[%clk 0:03:00]} 9...
O-O {[%clk 0:02:57.9]} 10. O-O {[%clk 0:03:00.3]} 10... Bg4 {[%clk 0:02:57.9]}
11. c3 {[%clk 0:02:58.3]} 11... Qf6 {[%clk 0:02:55.7]} 12. h3 {[%clk 0:02:48.5]}
12... Bxf3 {[%clk 0:02:55.4]} 13. Qxf3 {[%clk 0:02:49.4]} 13... Qxf3 {[%clk
0:02:55.2]} 14. gxf3 {[%clk 0:02:48.5]} 14... Ne7 {[%clk 0:02:50.3]} 15. Bd3
{[%clk 0:02:48.7]} 15... Nd5 {[%clk 0:02:47.8]} 16. c4 {[%clk 0:02:45.6]} 16...
Nf4 {[%clk 0:02:47.9]} 17. Bxf4 {[%clk 0:02:12.6]} 17... Bxf4 {[%clk 0:02:48.8]}
18. Rab1 {[%clk 0:02:12.9]} 18... b6 {[%clk 0:02:48.2]} 19. Rfe1 {[%clk
0:02:04.7]} 19... Rad8 {[%clk 0:02:35]} 20. d5 {[%clk 0:02:02.1]} 20... Rd6
{[%clk 0:02:29.9]} 21. Re4 {[%clk 0:01:59.8]} 21... Rg6+ {[%clk 0:02:25.2]} 22.
Kf1 {[%clk 0:01:56]} 22... Bd6 {[%clk 0:02:24.3]} 23. a4 {[%clk 0:01:51.4]}
23... a5 {[%clk 0:02:16.7]} 24. Rg4 {[%clk 0:01:44.9]} 24... Rh6 {[%clk
0:02:15.3]} 25. Kg2 {[%clk 0:01:26.6]} 25... f5 {[%clk 0:02:15.5]} 26. Rg5
{[%clk 0:01:26.8]} 26... g6 {[%clk 0:02:13.8]} 27. Kf1 {[%clk 0:01:12.6]} 27...
Rxh3 {[%clk 0:02:11.9]} 28. Kg2 {[%clk 0:00:48.9]} 28... Rh4 {[%clk 0:02:06.2]}
29. Kf1 {[%clk 0:00:46.3]} 29... Kf7 {[%clk 0:01:56.9]} 30. Rg1 {[%clk
0:00:35.7]} 30... Rd4 {[%clk 0:01:47.5]} 31. Rd1 {[%clk 0:00:30.6]} 31... Re8
{[%clk 0:01:45.6]} 32. Rh1 {[%clk 0:00:27.2]} 32... h5 {[%clk 0:01:38.8]} 33.
Rh3 {[%clk 0:00:16.3]} 33... h4 {[%clk 0:01:33.2]} 34. Be2 {[%clk 0:00:15.7]}
34... Rxd1+ {[%clk 0:01:29.1]} 35. Bxd1 {[%clk 0:00:16.6]} 35... g5 {[%clk
0:01:29.5]} 36. Bc2 {[%clk 0:00:16.9]} 36... Kf6 {[%clk 0:01:30.1]} 37. f4
{[%clk 0:00:12.9]} 37... Bxf4 {[%clk 0:01:29.1]} 38. c5 {[%clk 0:00:12.3]} 38...
bxc5 {[%clk 0:01:24.1]} 39. Rc3 {[%clk 0:00:12.3]} 39... Bd6 {[%clk 0:01:22.3]}
40. Rb3 {[%clk 0:00:11.7]} 40... g4 {[%clk 0:01:14.2]} 41. Rb5 {[%clk
0:00:10.6]} 41... h3 {[%clk 0:01:14.4]} 42. Rxa5 {[%clk 0:00:09.3]} 42... Re1+
{[%clk 0:01:07.9]} 43. Kxe1 {[%clk 0:00:08.9]} 43... h2 {[%clk 0:01:08.4]} 44.
Ra8 {[%clk 0:00:06.7]} 44... h1=Q+ {[%clk 0:01:07.8]} 45. Ke2 {[%clk 0:00:07.6]}
45... Qf3+ {[%clk 0:01:02.6]} 46. Kf1 {[%clk 0:00:07.9]} 46... g3 {[%clk
0:00:50]} 0-1

[Event "Late-Titled-Tuesday-Blitz-August-29-2023"]
[Site "Chess.com"]
[Date "2023.08.29"]
[Round "7"]
[White "I_am_Javi"]
[Black "GMBenjaminBok"]
[Result "0-1"]
[WhiteElo "2757"]
[BlackElo "2921"]
[TimeControl "180+1"]
[EndTime "15:16:11 PDT"]
[Termination "GMBenjaminBok won by resignation"]

1. e4 {[%clk 0:03:00.9]} 1... c5 {[%clk 0:03:00]} 2. Nf3 {[%clk 0:03:00.7]} 2...
d6 {[%clk 0:03:00.3]} 3. d4 {[%clk 0:03:01.3]} 3... cxd4 {[%clk 0:03:01.2]} 4.
Nxd4 {[%clk 0:03:01.7]} 4... Nf6 {[%clk 0:03:01.7]} 5. Nc3 {[%clk 0:03:02.4]}
5... a6 {[%clk 0:03:02.3]} 6. Bc4 {[%clk 0:03:02.8]} 6... e6 {[%clk 0:03:01.7]}
7. Bb3 {[%clk 0:03:03.4]} 7... b5 {[%clk 0:03:00.1]} 8. f3 {[%clk 0:03:03.5]}
8... Nbd7 {[%clk 0:02:45.9]} 9. Be3 {[%clk 0:03:01.8]} 9... Nc5 {[%clk
0:02:45.8]} 10. Qd2 {[%clk 0:03:00.1]} 10... Bb7 {[%clk 0:02:44.3]} 11. g4
{[%clk 0:02:59.8]} 11... Be7 {[%clk 0:02:43.2]} 12. g5 {[%clk 0:02:59.7]} 12...
Nfd7 {[%clk 0:02:42.5]} 13. a3 {[%clk 0:02:59.4]} 13... Qc7 {[%clk 0:02:36.2]}
14. Ba2 {[%clk 0:02:51.4]} 14... Ne5 {[%clk 0:02:33.1]} 15. h4 {[%clk 0:02:46]}
15... Rb8 {[%clk 0:02:12.2]} 16. O-O-O {[%clk 0:02:40]} 16... Ba8 {[%clk
0:02:07.7]} 17. b4 {[%clk 0:02:19]} 17... Na4 {[%clk 0:01:38.1]} 18. Nxa4 {[%clk
0:02:16.5]} 18... bxa4 {[%clk 0:01:39]} 19. Bxe6 {[%clk 0:01:52.7]} 19... fxe6
{[%clk 0:01:38.8]} 20. Nxe6 {[%clk 0:01:53.6]} 20... Qc4 {[%clk 0:01:32.2]} 21.
Nxg7+ {[%clk 0:01:53.9]} 21... Kd7 {[%clk 0:01:25.9]} 22. Nf5 {[%clk 0:01:53.9]}
22... Nxf3 {[%clk 0:01:20.5]} 23. Qf2 {[%clk 0:01:40.4]} 23... Bxe4 {[%clk
0:01:18.5]} 24. Nxd6 {[%clk 0:01:29.9]} 24... Bxd6 {[%clk 0:01:10.4]} 25. Bc5
{[%clk 0:01:29.8]} 25... Qa2 {[%clk 0:00:38.1]} 26. Rxd6+ {[%clk 0:01:13.8]}
26... Kc7 {[%clk 0:00:38]} 27. Kd1 {[%clk 0:00:48.9]} 27... Qb1+ {[%clk
0:00:30.7]} 28. Ke2 {[%clk 0:00:47]} 28... Qxh1 {[%clk 0:00:31.6]} 29. Rf6
{[%clk 0:00:27.2]} 29... Rbe8 {[%clk 0:00:20.3]} 30. Bd6+ {[%clk 0:00:18.2]}
30... Kd7 {[%clk 0:00:17.6]} 31. Qa7+ {[%clk 0:00:18.2]} 31... Bb7+ {[%clk
0:00:17.1]} 32. Be7 {[%clk 0:00:08.5]} 32... Rxe7+ {[%clk 0:00:16.5]} 33. Kd3
{[%clk 0:00:08.7]} 33... Qd1+ {[%clk 0:00:16.1]} 34. Kc4 {[%clk 0:00:09.6]}
34... Qd5+ {[%clk 0:00:15.5]} 35. Kc3 {[%clk 0:00:09.2]} 35... Rc8+ {[%clk
0:00:15.3]} 36. Kb2 {[%clk 0:00:08.9]} 36... Qd4+ {[%clk 0:00:15.9]} 37. Qxd4+
{[%clk 0:00:08.7]} 37... Nxd4 {[%clk 0:00:16.8]} 0-1